[Event "IX Iberoamericano Championship 2023"]
[Site "Panama City"]
[Date "2023.11.29"]
[Round "5.17"]
[White "Bogantes Robleto, Karina"]
[Black "Delgado Rosas, Alex Antonio"]
[Result "0-1"]
[ECO "A61"]
[WhiteElo "1739"]
[BlackElo "2105"]
[Annotator "NA RC"]
[PlyCount "55"]
[EventDate "2023.11.27"]
[EventType "swiss"]
[EventCountry "PAN"]
[SourceTitle "playchess.com"]
[Source "ChessBase"]
[SourceQuality "1"]
[TimeControl "5400+30"]

1. d4 {[%emt 0:00:40]} Nf6 {[%emt 0:00:05]} 2. c4 {[%emt 0:00:06]} c5 {[%emt 0:00:05]} 3. d5 {[%emt 0:00:06]} e6 {[%emt 0:00:09]} 4. Nc3 {[%emt 0:00:32]} exd5 {[%emt 0:00:16]} 5. cxd5 {[%emt 0:00:17]} d6 {[%emt 0:00:02]} 6. Nf3 {[%emt 0:01:03]} g6 {[%emt 0:00:08]} 7. h3 {[%emt 0:01:18]} Bg7 {[%emt 0:00:19]} 8. Qa4+ {[%emt 0:00:21]} Bd7 {[%emt 0:04:35]} 9. Qb3 {[%emt 0:00:15]} b5 {[%emt 0:03:19]} 10. Bf4 {[%emt 0:06:45]} b4 {[%emt 0:03:05]} 11. Nb1 {[%emt 0:00:39]} Qe7 {[%emt 0:03:27]} 12. e3 {[%emt 0:04:51]} O-O {[%emt 0:01:28]} 13. Bd3 {[%emt 0:06:09]} a5 {[%emt 0:01:54]} 14. a4 {[%emt 0:00:19]} c4 {[%emt 0:12:15]} 15. Bxc4 {[%emt 0:03:04]} Ne4 {[%emt 0:00:06]} 16. O-O {[%emt 0:05:27]} Nc5 {[%emt 0:00:31]} 17. Qc2 {[%emt 0:01:13]} Rc8 {[%emt 0:02:33]} 18. Nbd2 {[%emt 0:19:55]} Bf5 {[%emt 0:00:34]} 19. e4 {[%emt 0:01:19]} Nxe4 {[%emt 0:00:24]} 20. Rfe1 {[%emt 0:05:59]} Nxd2 {[%emt 0:00:11]} 21. Qxd2 {[%emt 0:00:05]} Qf8 {[%emt 0:01:31]} 22. Rac1 {[%emt 0:01:26]} Nd7 {[%emt 0:07:21]} 23. Nd4 {[%emt 0:02:19]} Nb6 {[%emt 0:01:24]} 24. Bb3 {[%emt 0:04:20]} Bd7 {[%emt 0:03:58]} 25. Nc6 {[%emt 0:01:42]} Kh8 {[%emt 0:05:36]} 26. Be3 {[%emt 0:09:16]} Ra6 {[%emt 0:00:08]} 27. Bd4 {[%emt 0:03:28]} Bxd4 {[%emt 0:03:38]} 28. Qd3 {[%emt 0:00:20]} 0-1

[Event "IX Iberoamericano Championship 2023"]
[Site "Panama City"]
[Date "2023.11.29"]
[Round "5.18"]
[White "Estrada Nieto, Julian"]
[Black "Mayorga Araya, Sofia"]
[Result "1-0"]
[ECO "B51"]
[WhiteElo "2212"]
[BlackElo "1733"]
[Annotator "NA RC"]
[PlyCount "47"]
[EventDate "2023.11.27"]
[EventType "swiss"]
[EventCountry "PAN"]
[SourceTitle "playchess.com"]
[Source "ChessBase"]
[SourceQuality "1"]
[TimeControl "5400+30"]

1. e4 {[%emt 0:00:47]} c5 {[%emt 0:00:04]} 2. Nf3 {[%emt 0:00:24]} d6 {[%emt 0:00:05]} 3. Bb5+ {[%emt 0:00:19]} Nd7 {[%emt 0:00:07]} 4. d4 {[%emt 0:00:30]} cxd4 {[%emt 0:00:23]} 5. Qxd4 {[%emt 0:00:06]} a6 {[%emt 0:00:08]} 6. Bxd7+ {[%emt 1:31:24]} Bxd7 {[%emt 0:00:17]} 7. Nc3 {[%emt 0:00:00]} e5 {[%emt 0:00:22]} 8. Qd3 {[%emt 0:00:00]} Nf6 {[%emt 0:00:07]} 9. Bg5 {[%emt 0:00:00]} Bc6 {[%emt 0:01:41]} 10. O-O-O {[%emt 0:00:00]} Qa5 {[%emt 0:05:37]} 11. Bxf6 {[%emt 0:00:00]} gxf6 {[%emt 0:00:41]} 12. Kb1 {[%emt 0:00:00]} O-O-O {[%emt 0:04:08]} 13. Nd5 {[%emt 0:00:00]} Bxd5 {[%emt 0:13:13]} 14. Qxd5 {[%emt 0:00:00]} Qxd5 {[%emt 0:00:11]} 15. Rxd5 {[%emt 0:00:00]} Rg8 {[%emt 0:00:14]} 16. g3 {[%emt 0:00:00]} Kc7 {[%emt 0:01:13]} 17. Nh4 {[%emt 0:00:00]} Kc6 {[%emt 0:03:57]} 18. Rhd1 {[%emt 0:00:00]} h5 {[%emt 0:14:38]} 19. a4 {[%emt 0:00:00]} Kd7 {[%emt 0:05:49]} 20. Nf5 {[%emt 0:00:00]} Ke6 {[%emt 0:00:21]} 21. c4 {[%emt 0:00:00]} Be7 {[%emt 0:01:31]} 22. c5 {[%emt 0:00:00]} Rd7 {[%emt 0:10:18]} 23. cxd6 {[%emt 0:00:00]} Bd8 {[%emt 0:00:09]} 24. f4 {[%emt 0:00:00]} 1-0

[Event "IX Iberoamericano Championship 2023"]
[Site "Panama City"]
[Date "2023.11.30"]
[Round "6.1"]
[White "Hernandez Guerrero, Gilberto"]
[Black "Henriquez Villagra, Cristobal"]
[Result "1/2-1/2"]
[ECO "B47"]
[WhiteElo "2527"]
[BlackElo "2630"]
[Annotator "TA"]
[PlyCount "36"]
[EventDate "2023.11.27"]
[EventType "swiss"]
[EventCountry "PAN"]
[SourceTitle "playchess.com"]
[Source "ChessBase"]
[SourceQuality "1"]
[TimeControl "5400+30"]

{[%evp 19,36,19,22,21,12,19,19,19,56,45,25,34,70,82,269,273,467,-7,0]} 1. e4 {[%emt 0:00:01]} c5 {[%emt 0:02:09]} 2. Nc3 {[%emt 0:01:49]} Nc6 {[%emt 0:00:16]} 3. Nf3 {[%emt 0:00:50]} e6 {[%emt 0:00:10]} 4. d4 {[%emt 0:01:03]} cxd4 {[%emt 0:01:20]} 5. Nxd4 {[%emt 0:00:06]} Qc7 {[%emt 0:00:13]} 6. f4 {[%emt 0:00:57]} a6 {[%emt 0:20:21]} 7. Nxc6 {[%emt 0:00:34]} Qxc6 {[%emt 0:01:18]} 8. Bd3 {[%emt 0:00:16]} b5 {[%emt 0:03:09]} 9. Qe2 {[%emt 0:00:42]} Bb7 {[%emt 0:04:49]} 10. Bd2 {[%emt 0:00:17]} Bc5 {[%emt 0:04:55]} 11. a3 {[%emt 0:10:16] B47: Sicilian: Taimanov: 5 Nc3 Qc7 6 f4, 6 g3 and 6 Be2.} Ne7 {[%emt 0:06:17]} 12. O-O-O {[%emt 0:02:14]} O-O {[%emt 0:07:29]} 13. Rhf1 {[%emt 0:03:45]} b4 {[%emt 0:05:37]} 14. axb4 {[%emt 0:00:46]} Bxb4 {[%emt 0:00:04]} 15. f5 {[%emt 0:10:15] [#] Black must now prevent f6.} exf5 $146 {[%emt 0:01:57]} ({Predecessor:} 15... f6 16. Rf4 Rf7 17. Rh4 a5 18. Qh5 g6 19. fxg6 Nxg6 20. Rg4 Qc5 21. e5 f5 {1-0 Costa,L (2346)-Grabinsky,A (2409) Budapest SixDays 08 GM-A 2023 (6)}) 16. exf5 {[%emt 0:00:31][%cal Of5f6] Threatens to win with f6!} Bxc3 {[%emt 0:16:11]} (16... Qf6 $16 {was necessary.}) 17. Bxc3 $18 {[%emt 0:03:01]} Nd5 {[%emt 0:00:07] [#]} (17... Qh6+ 18. Bd2 Qf6) 18. Bd2 $2 {[%emt 0:21:24] This pair of bishops is nice.} (18. Bxg7 $1 $18 {f6 would kill now.} Kxg7 19. Qg4+ Kh8 20. f6 Nxf6 21. Qd4) 18... Qa4 {[%emt 0:00:30] Weighted Error Value: White=0.76/Black=0.67} 1/2-1/2

[Event "IX Iberoamericano Championship 2023"]
[Site "Panama City"]
[Date "2023.11.30"]
[Round "6.2"]
[White "Mareco, Sandro"]
[Black "De La Riva Aguado, Oscar"]
[Result "1/2-1/2"]
[ECO "C11"]
[WhiteElo "2606"]
[BlackElo "2437"]
[Annotator "TA"]
[PlyCount "39"]
[EventDate "2023.11.27"]
[EventType "swiss"]
[EventCountry "PAN"]
[SourceTitle "playchess.com"]
[Source "ChessBase"]
[SourceQuality "1"]
[TimeControl "5400+30"]

{[%evp 12,39,17,25,15,7,4,20,6,19,15,16,39,6,16,0,0,-20,0,-2,-18,-22,37,0,41,33,38,-14,-4,-21]} 1. e4 {[%emt 0:00:06]} e6 {[%emt 0:01:09]} 2. d4 {[%emt 0:00:30]} d5 {[%emt 0:00:30]} 3. Nc3 {[%emt 0:00:12]} Nf6 {[%emt 0:00:00]} 4. e5 {[%emt 0:00:05]} Nfd7 {[%emt 0:00:00]} 5. Nce2 {[%emt 0:00:21]} c5 {[%emt 0:00:00]} 6. c3 {[%emt 0:00:04]} cxd4 {[%emt 0:00:28]} 7. cxd4 {[%emt 0:00:05]} f6 {[%emt 0:00:07] C11: French: Classical System: 4 e5 and 4 Bg5 dxe4.} 8. Nf4 {[%emt 0:03:15] Strongly threatening Qh5+.} Bb4+ {[%emt 0:03:35]} 9. Bd2 {[%emt 0:00:05]} Qb6 {[%emt 0:00:30]} 10. Bxb4 {[%emt 0:09:16][%mdl 64] [#] Remove Defender} Qxb4+ {[%emt 0:00:09]} 11. Qd2 {[%emt 0:00:02]} Qxd2+ {[%emt 0:00:53]} 12. Kxd2 {[%emt 0:00:04]} Ke7 {[%emt 0:01:01]} 13. exf6+ {[%emt 0:02:28]} gxf6 {[%emt 0:00:49]} 14. Nf3 {[%emt 0:00:31]} Nc6 {[%emt 0:07:10] [#]} 15. Bb5 $146 {[%emt 0:13:32]} ({Predecessor:} 15. Re1 Nb6 16. Bd3 Kd6 17. Nh5 e5 18. Nxf6 e4 19. Ng5 Rf8 20. Nfxh7 Rxf2+ 21. Re2 {0-1 Milliet,S (2401)-Navrotescu,A (2284) C'Chartres Blitz Showmatch 2 2020 (7)}) 15... Kd6 {[%emt 0:06:11]} 16. Rhe1 {[%emt 0:08:34]} Nb6 {[%emt 0:11:27]} ({Black should play} 16... e5 $11 17. Nh5 Nxd4 18. Nxd4 exd4) 17. b3 {[%emt 0:01:25]} Bd7 {[%emt 0:03:18]} 18. Rac1 {[%emt 0:02:58]} Rae8 {[%emt 0:04:30]} 19. Nd3 {[%emt 0:03:33]} (19. Bxc6 $14 bxc6 20. Nd3) 19... Nb8 {[%emt 0:03:36]} 20. a4 {[%emt 0:12:20] Weighted Error Value: White=0.15 (very precise) /Black=0.15 (very precise)} 1/2-1/2

[Event "IX Iberoamericano Championship 2023"]
[Site "Panama City"]
[Date "2023.11.30"]
[Round "6.3"]
[White "Sanchez Alvarez, Roberto Carlos"]
[Black "Almeida Quintana, Omar"]
[Result "1/2-1/2"]
[ECO "A41"]
[WhiteElo "2437"]
[BlackElo "2509"]
[Annotator "TA"]
[PlyCount "82"]
[EventDate "2023.11.27"]
[EventType "swiss"]
[EventCountry "PAN"]
[SourceTitle "playchess.com"]
[Source "ChessBase"]
[SourceQuality "1"]
[TimeControl "5400+30"]

{[%evp 9,82,40,52,47,58,54,58,59,62,43,39,38,50,45,96,103,89,83,110,100,107,105,106,79,119,114,154,159,146,155,140,132,157,150,174,179,225,220,235,222,238,227,226,229,482,333,380,375,450,427,447,432,615,611,591,608,591,571,585,429,595,576,573,560,378,174,152,168,215,172,293,0,0,-107,868]} 1. d4 {[%emt 0:11:02]} d6 {[%emt 0:00:37]} 2. Nf3 {[%emt 0:00:30]} g6 {[%emt 0:00:18]} 3. c4 {[%emt 0:00:14]} Bg7 {[%emt 0:00:05]} 4. Nc3 {[%emt 0:00:09]} Bg4 {[%emt 0:03:13]} 5. g3 {[%emt 0:00:13]} Nc6 {[%emt 0:01:36]} 6. Bg2 {[%emt 0:01:50] A41: 1 d4 d6: Tartakower System and Modern Defence.} e5 {[%emt 0:00:29]} 7. d5 {[%emt 0:00:14]} Nce7 {[%emt 0:00:36]} 8. e4 {[%emt 0:00:14] White is slightly better.} Nf6 {[%emt 0:00:50]} 9. h3 {[%emt 0:00:54]} Bd7 {[%emt 0:01:56]} 10. O-O {[%emt 0:00:47]} O-O {[%emt 0:00:38]} 11. Be3 {[%emt 0:00:59] [#]} c5 $146 {[%emt 0:02:24]} (11... Ne8 $14) ({Predecessor:} 11... Nh5 12. c5 f5 13. exf5 Nxf5 14. Bg5 Bf6 15. Ne4 Bxg5 16. Nfxg5 h6 17. Ne6 Bxe6 18. dxe6 {0-1 Zhukova,N (2403)-Batsiashvili,N (2482) Telavi Lela and Bela Cup rapid 2018 (1)}) 12. dxc6 $16 {[%emt 0:04:05]} Bxc6 {[%emt 0:00:28]} 13. Qd3 {[%emt 0:00:48]} Qb8 {[%emt 0:12:27]} 14. Rfd1 {[%emt 0:02:49]} Rd8 {[%emt 0:00:32]} 15. b4 {[%emt 0:00:19]} b6 {[%emt 0:00:22]} 16. Nd2 {[%emt 0:11:47]} Qb7 {[%emt 0:06:23]} 17. a4 {[%emt 0:03:57]} a5 {[%emt 0:03:48]} 18. Rdb1 {[%emt 0:23:36]} (18. b5 Be8 19. Nf3 Nh5 $16) 18... axb4 {[%emt 0:03:36]} 19. Rxb4 {[%emt 0:00:19]} Nd7 {[%emt 0:00:02]} 20. Qb1 {[%emt 0:00:09]} (20. Qxd6 $2 Nf8 $19) 20... Rdb8 {[%emt 0:16:38]} 21. Nd5 {[%emt 0:02:44]} Bxd5 {[%emt 0:00:24]} 22. cxd5 {[%emt 0:00:32]} ({Weaker is} 22. exd5 Nf5 $11) 22... Qc7 {[%emt 0:06:18]} (22... Nc5 $142 23. Nc4 Nc8 24. Nxd6 {[%mdl 64] Remove Defender} Nxd6) 23. Nc4 $18 {[%emt 0:02:14]} Nc8 {[%emt 0:00:35] [#]} 24. h4 $1 {[%emt 0:08:56] Black is weak on the light squares} Bf6 {[%emt 0:04:58]} 25. Bh3 {[%emt 0:01:05]} Bd8 {[%emt 0:00:14]} 26. Ra2 {[%emt 0:00:51]} Ra6 $2 {[%emt 0:03:52]} (26... Nc5 27. Bxc8 {[%mdl 64] Remove Defender, Deflection} Qxc8 28. Nxd6 (28. Nxb6 Bxb6 29. Rxb6 Nxa4 $14) 28... Qc7) 27. Rc2 {[%emt 0:00:50][%cal Oc4b6] aiming for Nxb6!} Nc5 {[%emt 0:00:31] [#]} 28. a5 $1 {[%emt 0:06:52][%cal Ba4a5,Ba5b6,Bb6b7][%mdl 544] Black must now prevent Bxc8.} Be7 {[%emt 0:02:14]} (28... Qe7 29. Rc1) 29. Bxc8 {[%emt 0:05:11]} Qxc8 {[%emt 0:01:32]} 30. axb6 {[%emt 0:01:03]} ({Less strong is} 30. Nxb6 Qg4 $18) 30... Qg4 {[%emt 0:00:28] [#]} (30... Qh3 $142 31. Nxe5 Rb7) 31. Nxe5 $1 {[%emt 0:01:15][%mdl 576] Deflection} dxe5 {[%emt 0:01:02]} 32. Bxc5 {[%emt 0:00:03]} Bxh4 {[%emt 0:00:06]} 33. Rc3 {[%emt 0:03:41]} Bd8 {[%emt 0:00:21]} 34. Rbb3 {[%emt 0:01:17]} h5 {[%emt 0:03:02]} 35. b7 {[%emt 0:02:07]} Qd7 {[%emt 0:02:40]} 36. Be3 {[%emt 0:01:09]} h4 {[%emt 0:01:30]} 37. gxh4 {[%emt 0:01:37]} (37. Rc6 $142 Ra4 38. Kg2) 37... Qg4+ {[%emt 0:02:02]} 38. Kf1 {[%emt 0:00:02][%cal Oe3g5] Hoping for Bg5!} Qxh4 {[%emt 0:00:07]} (38... Kg7 $142 39. Bc5 Bxh4) 39. Ke2 {[%emt 0:01:45] Rc8 would be deadly.} Kg7 {[%emt 0:00:53]} (39... Qg4+ $142 40. Kd3 f5) 40. Rc8 $2 {[%emt 0:00:41] Active counter play!} (40. Ra3 $18 Qg4+ 41. Kd3) 40... Rxb7 $11 {[%emt 0:20:43]} 41. Kd3 {[%emt 0:01:03] [#]} ({Wrong is} 41. Bh6+ $2 Kxh6 42. Rxb7 Qg4+ 43. Kf1 Qxc8 $19) (41. Rxb7 $11 {was the only way to keep the balance.} Qg4+ 42. f3 Qxc8 43. Qb3) 41... Raa7 $2 {[%mdl 40960] An exciting game.   Weighted Error Value: White=0.38/Black=0.39. An unexpected result.} 1/2-1/2

[Event "IX Iberoamericano Championship 2023"]
[Site "Panama City"]
[Date "2023.11.30"]
[Round "6.4"]
[White "Flores Quillas, Diego Saul Rodri"]
[Black "Cuenca Jimenez, Jose Fernando"]
[Result "1/2-1/2"]
[ECO "C18"]
[WhiteElo "2414"]
[BlackElo "2505"]
[Annotator "TA"]
[PlyCount "64"]
[EventDate "2023.11.27"]
[EventType "swiss"]
[EventCountry "PAN"]
[SourceTitle "playchess.com"]
[Source "ChessBase"]
[SourceQuality "1"]
[TimeControl "5400+30"]

{[%evp 15,64,-7,0,-12,0,-25,-19,-21,-28,-49,-43,-113,-113,-108,-97,-113,-104,-97,-48,-63,-56,-72,-54,-56,-53,-120,-121,-122,-69,-127,-125,-145,-135,-147,-156,-151,-124,-117,-120,-111,-17,-15,-16,-15,-24,-27,-9,-10,0,0,0]} 1. e4 {[%emt 0:00:30]} e6 {[%emt 0:00:37]} 2. d4 {[%emt 0:17:06]} d5 {[%emt 0:00:09]} 3. Nc3 {[%emt 0:00:06]} Bb4 {[%emt 0:02:04]} 4. e5 {[%emt 0:00:09]} c5 {[%emt 0:01:13]} 5. a3 {[%emt 0:02:14]} Bxc3+ {[%emt 0:00:20]} 6. bxc3 {[%emt 0:00:01]} Qa5 {[%emt 0:00:17]} 7. Bd2 {[%emt 0:01:05]} Qa4 {[%emt 0:00:04]} 8. Nf3 {[%emt 0:09:24]} b6 {[%emt 0:00:26]} 9. dxc5 {[%emt 0:03:54] C18: French: 3 Nc3 Bb4: Main line: 7 h4 and 7 Qg4.} bxc5 {[%emt 0:02:41]} 10. Rb1 {[%emt 0:00:06]} Ba6 {[%emt 0:01:18] Dodges Bb5+} 11. Bxa6 {[%emt 0:00:10] [#]} Nxa6 $146 {[%emt 0:26:50]} ({Predecessor:} 11... Qxa6 12. Qe2 Qxe2+ 13. Kxe2 Nd7 14. Rb7 Ne7 15. Rhb1 Nc6 16. Rc7 Ncxe5 17. Rbb7 O-O {½-½ Radovanovic,N (2438)-Pesotskiy,M (2177) Veliko Gradiste Silver Lake op 2018 (1)}) 12. O-O {[%emt 0:02:32][%cal Oc3c4]} Ne7 {[%emt 0:13:23][%cal Oa8b8]} 13. Rb7 {[%emt 0:16:33] [#]} ({White should play} 13. Qe2 $15) 13... Rb8 $1 $17 {[%emt 0:01:16]} 14. Rxb8+ {[%emt 0:05:00]} (14. Rxa7 $2 {is the wrong capture.} Nc6 15. Rxa6 Qxa6 $19) 14... Nxb8 {[%emt 0:00:30][%cal Ba6b8,Bb8d7,Bd7e5][%mdl 32]} 15. Qb1 {[%emt 0:00:06]} O-O {[%emt 0:09:11]} 16. Qb3 {[%emt 0:00:11]} Qxb3 {[%emt 0:23:07]} (16... Qa6 $17) 17. cxb3 $15 {[%emt 0:00:04]} Nd7 {[%emt 0:00:03]} 18. Be3 {[%emt 0:00:37]} Nc6 {[%emt 0:02:39]} 19. b4 {[%emt 0:00:37]} Rb8 {[%emt 0:00:06]} 20. Rd1 {[%emt 0:09:34] [#]} (20. g3 $15) 20... a5 $1 $17 {[%emt 0:05:35]} 21. bxc5 {[%emt 0:04:04]} Ncxe5 {[%emt 0:00:24]} (21... Ndxe5 $17 22. Nd4 Nxd4 23. cxd4 Nc6) 22. Nxe5 {[%emt 0:05:43]} ({Better is} 22. Kf1 $15) 22... Nxe5 {[%emt 0:00:01][%mdl 4096] Endgame KRB-KRN} 23. h3 {[%emt 0:00:06]} Nc4 {[%emt 0:05:53]} 24. Bf4 {[%emt 0:00:04]} Rc8 {[%emt 0:02:01]} 25. Rb1 {[%emt 0:00:46]} e5 {[%emt 0:01:25]} (25... Rxc5 $2 {leads to mate.} 26. Rb8+) 26. Bc1 {[%emt 0:00:54]} f6 {[%emt 0:00:53]} (26... Rxc5 $2 {is a self mate.} 27. Rb8+) 27. Rb5 {[%emt 0:00:13][%cal Oc5c6]} d4 {[%emt 0:00:50]} (27... Kf7 $17) 28. cxd4 $11 {[%emt 0:00:38]} exd4 {[%emt 0:00:01] ...d3 would be deadly.} 29. Kf1 {[%emt 0:01:37]} d3 {[%emt 0:00:02] And now ...d2 would win.} 30. Be3 {[%emt 0:01:17]} Kf7 {[%emt 0:01:18]} 31. Rb3 {[%emt 0:02:12]} d2 {[%emt 0:00:50][%cal Rd2d1]} 32. Ke2 {[%emt 0:00:40]} Nxe3 {[%emt 0:00:28] Weighted Error Value: White=0.12 (very precise) /Black=0.14 (very precise)} 1/2-1/2

[Event "IX Iberoamericano Championship 2023"]
[Site "Panama City"]
[Date "2023.11.30"]
[Round "6.5"]
[White "Miranda Mesa, Elier"]
[Black "Zambrana, Osvaldo"]
[Result "1/2-1/2"]
[ECO "B23"]
[WhiteElo "2490"]
[BlackElo "2400"]
[Annotator "TA"]
[PlyCount "52"]
[EventDate "2023.11.27"]
[EventType "swiss"]
[EventCountry "PAN"]
[SourceTitle "playchess.com"]
[Source "ChessBase"]
[SourceQuality "1"]
[TimeControl "5400+30"]

{[%evp 9,52,0,0,0,0,0,0,4,0,0,0,0,6,0,31,35,35,35,27,35,30,25,36,26,43,4,4,5,31,31,39,0,-8,-41,-41,-41,-33,-41,27,-31,0,-52,44,-45,97]} 1. e4 {[%emt 0:00:30]} c5 {[%emt 0:00:30]} 2. Nc3 {[%emt 0:00:00]} Nc6 {[%emt 0:02:18]} 3. Bb5 {[%emt 0:00:00]} Nd4 {[%emt 0:00:26]} 4. Bc4 {[%emt 0:00:00]} a6 {[%emt 0:00:07]} 5. a4 {[%emt 0:00:20]} e6 {[%emt 0:00:11]} 6. Nge2 {[%emt 0:00:19] B23: Closed Sicilian: Lines without g3.} Nf6 {[%emt 0:00:20]} 7. O-O {[%emt 0:00:16]} d5 {[%emt 0:00:27]} 8. exd5 {[%emt 0:00:04] The position is equal.} exd5 {[%emt 0:00:07]} 9. Ba2 {[%emt 0:00:03]} ({Much worse is} 9. Nxd4 cxd4 10. Nxd5 Nxd5 $15) 9... Bd6 {[%emt 0:00:58][%cal Od6h2] [#] Threatens to win with ...Bxh2+!} 10. d3 {[%emt 0:00:09]} Ne6 $1 {[%emt 0:01:03] Dodges Bg5 The main line 10...Ne6 scores better than 10...0-0.} 11. Ng3 {[%emt 0:00:20]} O-O {[%emt 0:00:23]} 12. Nh5 {[%emt 0:00:50]} Nxh5 {[%emt 0:00:20]} 13. Qxh5 {[%emt 0:00:08]} Nd4 {[%emt 0:00:10]} 14. Bg5 {[%emt 0:09:08]} Qd7 {[%emt 0:00:11]} 15. Bxd5 {[%emt 0:15:36]} Nxc2 {[%emt 0:00:56]} 16. Rac1 {[%emt 0:00:18]} Nb4 {[%emt 0:22:44] [#]} 17. Bc4 $146 {[%emt 0:04:29]} ({Predecessor:} 17. Bf3 h6 18. Ne4 f5 19. Nxd6 hxg5 20. Nxc8 Raxc8 21. Rc3 g4 22. Bd1 Nd5 23. Bb3 {½-½ Latypov,M (2145)-Shchemelev,P (2296) W-Cup22 WS33 email 2017}) 17... b6 {[%emt 0:16:13]} 18. Rfe1 {[%emt 0:09:32]} Qf5 {[%emt 0:07:18]} (18... Qg4 $5 19. Qxg4 Bxg4 $11) 19. Ne4 {[%emt 0:04:02]} Bc7 {[%emt 0:02:37]} 20. Re3 {[%emt 0:24:22]} (20. d4 $14) 20... Be6 $11 {[%emt 0:05:05]} 21. Bxe6 {[%emt 0:04:01]} fxe6 {[%emt 0:03:13]} 22. Rf3 {[%emt 0:00:29]} Qe5 {[%emt 0:04:08] ...Rxf3 would be deadly.} 23. Rh3 {[%emt 0:02:23]} Qf5 {[%emt 0:06:17]} (23... h6 $15 24. Be3 (24. Qg6 $2 Qf5 $19) 24... Qxh5 25. Rxh5 Nxd3) 24. Rf3 {[%emt 0:04:34]} (24. g4 $11 Qg6 25. Qxg6 hxg6 26. a5) 24... Qe5 {[%emt 0:00:03] White must now prevent ...Rxf3.} (24... Qd5 $5 {[%cal Rf8f3]}) 25. Rh3 {[%emt 0:21:07] Some like it hot} Qf5 {[%emt 0:26:55]} ({Black should try} 25... h6 $15 26. Be3 (26. Qg6 $2 Qf5 $19) 26... Qxh5 27. Rxh5 Nxd3) 26. Re1 {[%emt 0:00:30]} (26. g4 $14 Qg6 27. Qxg6 hxg6 28. a5) 26... Bd8 {[%emt 0:00:30] Weighted Error Value: White=0.17 (very precise) /Black=0.14 (very precise)} (26... h6 $15 {keeps the upper hand.}) 1/2-1/2

[Event "IX Iberoamericano Championship 2023"]
[Site "Panama City"]
[Date "2023.11.30"]
[Round "6.6"]
[White "Espinosa Veloz, Ermes"]
[Black "Ynojosa Aponte, Felix Jose"]
[Result "1-0"]
[ECO "B30"]
[WhiteElo "2478"]
[BlackElo "2393"]
[Annotator "TA"]
[PlyCount "61"]
[EventDate "2023.11.27"]
[EventType "swiss"]
[EventCountry "PAN"]
[SourceTitle "playchess.com"]
[Source "ChessBase"]
[SourceQuality "1"]
[TimeControl "5400+30"]

{[%evp 10,61,30,27,27,25,22,20,55,13,22,20,27,21,22,16,22,10,23,32,64,61,68,72,66,35,339,343,339,341,406,406,400,399,385,360,384,371,364,374,472,468,551,551,1114,1114,1103,1056,2068,1966,1671,1394,1305,1282]} 1. e4 {[%emt 0:00:04]} c5 {[%emt 0:00:01]} 2. Nf3 {[%emt 0:00:15]} Nc6 {[%emt 0:00:02]} 3. Bb5 {[%emt 0:00:16]} e6 {[%emt 0:00:01]} 4. O-O {[%emt 0:00:18]} Nge7 {[%emt 0:00:02]} 5. Re1 {[%emt 0:00:11]} Ng6 {[%emt 0:00:02]} 6. c3 {[%emt 0:01:10]} Be7 {[%emt 0:00:02] B30: Sicilian: 2...Nc6 3 Bb5, lines without ...g6.} 7. d4 {[%emt 0:00:25]} cxd4 {[%emt 0:00:03]} 8. cxd4 {[%emt 0:00:18]} d5 {[%emt 0:00:02] The position is equal.} 9. e5 {[%emt 0:04:21]} O-O {[%emt 0:00:03]} 10. Nc3 {[%emt 0:00:23][%cal Bb1c3,Bc3a4,Ba4c5][%mdl 32]} Bd7 {[%emt 0:00:22]} 11. Be3 {[%emt 0:03:31] [#]} f6 $146 {[%emt 0:00:14]} ({Predecessor:} 11... Qb6 12. Qe2 Rfc8 13. Rad1 a6 14. Bd3 Nb4 15. Bb1 Bb5 16. Qd2 Nc6 17. Bg5 Bb4 {1-0 Svane,F (2603)-Dixit,N (2289) Dortmund Sparkassen op 50th 2023 (1)}) 12. exf6 {[%emt 0:01:39]} Bxf6 {[%emt 0:00:34]} 13. Rc1 {[%emt 0:17:31]} Be8 {[%emt 0:01:36]} 14. Na4 {[%emt 0:11:36]} Qa5 {[%emt 0:23:21]} 15. Bxc6 {[%emt 0:14:40]} Bxc6 {[%emt 0:00:29]} 16. Nc5 {[%emt 0:00:02]} Rfe8 {[%emt 0:04:29]} 17. Bg5 {[%emt 0:06:07]} (17. Bd2 $5 {[%cal Rd2a5]} Qb6 18. Re3 $14 (18. Nxe6 Qxb2 19. Bg5 Re7 $11) (18. Rxe6 Rxe6 19. Nxe6 Qxb2 $11)) 17... Qxa2 $2 {[%emt 0:05:13][%mdl 8192] This move loses the game for Black.} ({Black should play} 17... e5 $14) 18. Bxf6 $18 {[%emt 0:00:13]} gxf6 {[%emt 0:00:01] [#]} 19. Qd2 {[%emt 0:00:09]} e5 {[%emt 0:07:07]} 20. Re3 {[%emt 0:02:02] Strongly threatening Ra3.} e4 {[%emt 0:04:27]} 21. Ne1 {[%emt 0:01:10] Ra3 is the strong threat.} ({Weaker is} 21. Ra3 Qxa3 22. bxa3 exf3 $18) 21... b6 {[%emt 0:01:05]} 22. Ra3 {[%emt 0:00:38] Inhibits Qa5.} Qxa3 {[%emt 0:00:03]} 23. bxa3 {[%emt 0:00:05]} bxc5 {[%emt 0:00:02]} 24. Rxc5 {[%emt 0:00:10]} Ne7 {[%emt 0:00:22]} 25. Nc2 {[%emt 0:00:33] White is clearly winning.} Reb8 {[%emt 0:00:59]} 26. h4 {[%emt 0:01:37]} Rb5 {[%emt 0:02:49]} 27. Rxb5 {[%emt 0:01:37][%mdl 64] [#] Remove Defender} Bxb5 {[%emt 0:00:03]} 28. Qb4 {[%emt 0:00:06][%csl LRb5,LRe7]} Bd3 {[%emt 0:00:02]} 29. Qxe7 {[%emt 0:00:23] White threatens Ne3 and mate.} Bxc2 {[%emt 0:00:02]} 30. Qe6+ {[%emt 0:01:09]} Kg7 {[%emt 0:00:02]} 31. Qc6 {[%emt 0:00:05] Weighted Error Value: White=0.04 (flawless) /Black=0.44} 1-0